bitfinex-derivatives/quotes_SOLF0:USTF0_20250523
["timestamp","ask_amount","ask_price","bid_price","bid_amount"]
[1747963059222,8.0684714,181.59,181.56,0.0348327]
[1747963059522,13.5746714,181.59,181.56,0.0348327]
[1747963060611,5.5062,181.58,181.56,0.0348327]
[1747963061125,13.5744714,181.59,181.56,0.0348327]
[1747963061316,13.5744714,181.59,181.56,5.5416327]
[1747963061819,8.0684714,181.59,181.56,0.0348327]
[1747963062525,8.0684714,181.59,181.58,5.5062]
[1747963063226,8.0684714,181.59,181.57,5.5064]
[1747963063425,8.0684714,181.59,181.56,0.0348327]
[1747963064424,8.0684714,181.59,181.58,5.5062]
[1747963065120,7.14e-05,181.59,181.58,5.5062]
[1747963065329,120.02,181.67,181.58,224.68]
[1747963066022,120.02,181.67,181.64,5.5042]
[1747963066327,0.038433,181.66,181.63,5.5046]
[1747963066529,0.038433,181.66,181.61,0.04085921]
[1747963067026,5.5068,181.57,181.53,125.6110994]
[1747963067230,120.0,181.61,181.53,5.6110994]
[1747963067428,3.7,181.57,181.54,5.5072]
[1747963067827,3.7,181.57,181.53,5.6110994]
[1747963068036,3.73682466,181.57,181.53,5.65038851]
[1747963068834,3.73682466,181.57,181.54,5.5073]
[1747963069031,3.73682466,181.57,181.53,5.65038851]
[1747963069435,3.73682466,181.57,181.53,0.03928911]
[1747963069731,3.73682466,181.57,181.54,5.5072]
[1747963070233,3.73682466,181.57,181.53,0.03928911]
[1747963071032,3.73682466,181.57,181.54,5.5073]
[1747963071232,3.73682466,181.57,181.53,0.03928911]
[1747963072035,3.73682466,181.57,181.49,120.0]
[1747963072036,5.5082,181.52,181.49,120.0]
[1747963072332,5.5082,181.52,181.48,5.5091]
[1747963073035,5.54615161,181.52,181.48,5.54867828]
[1747963073235,0.03795161,181.52,181.48,0.03957828]
[1747963073833,0.03795161,181.52,181.51,5.5084]
[1747963074037,0.03795161,181.52,181.48,0.03957828]
[1747963074532,0.03795161,181.52,181.5,5.5086]
[1747963074734,0.03795161,181.52,181.48,0.03957828]
[1747963075534,0.03795161,181.52,181.5,5.5086]
[1747963076337,0.03795161,181.52,181.51,5.5084]
[1747963076543,0.03795161,181.52,181.48,0.03957828]
[1747963077437,0.03795161,181.52,181.51,5.5084]
[1747963078641,0.03795161,181.52,181.48,0.03957828]
[1747963079140,0.03795161,181.52,181.49,5.5089]
[1747963079341,0.03795161,181.52,181.48,0.03957828]
[1747963079539,0.03795161,181.52,181.51,5.5084]
[1747963079934,0.03795161,181.52,181.48,0.03957828]
[1747963080343,0.03795161,181.52,181.51,5.5084]
[1747963080546,0.03795161,181.52,181.48,0.03957828]
[1747963080839,0.03795161,181.52,181.51,5.5084]
[1747963081043,120.02,181.63,181.51,120.02]
[1747963081341,120.02,181.63,181.58,5.506]
[1747963081746,3.71,181.62,181.58,5.506]
[1747963081940,3.74576569,181.62,181.58,5.506]
[1747963082143,3.74576569,181.62,181.58,5.54152224]
[1747963082446,3.74576569,181.62,181.59,5.5059]
[1747963082635,3.74576569,181.62,181.58,0.03552224]
[1747963083542,3.74576569,181.62,181.61,5.5053]
[1747963083846,3.74576569,181.62,181.58,0.03552224]
[1747963084048,3.74576569,181.62,181.33,9.71209906]
[1747963084049,120.02,181.61,181.48,595.96]
[1747963084435,3.71,181.62,181.49,5.6110994]
[1747963084641,3.71,181.62,181.5,120.02]
[1747963084840,3.71,181.62,181.5,121.8787]
[1747963085044,0.03631319,181.58,181.54,0.03743457]
[1747963086047,0.03631319,181.58,181.57,5.5065]
[1747963087739,0.03631319,181.58,181.56,5.5068]
[1747963088550,0.03631319,181.58,181.57,5.5065]
[1747963093761,1.319e-05,181.58,181.57,5.5065]
[1747963095160,3.71,181.62,181.61,5.5053]
[1747963095556,119.78,181.69,181.6,119.78]
[1747963095961,11.311,181.7,181.6,119.78]
[1747963096265,0.0400849,181.67,181.63,0.03636707]
[1747963096462,0.0400849,181.67,181.66,5.5036]
[1747963096866,8.49e-05,181.67,181.66,5.5036]
[1747963099671,8.49e-05,181.67,181.65,119.78]
[1747963100660,8.49e-05,181.67,181.66,5.5038]
[1747963105761,8.49e-05,181.67,181.65,119.78]
[1747963106267,8.49e-05,181.67,181.66,5.5038]
[1747963107166,8.49e-05,181.67,181.65,119.78]
[1747963107571,8.49e-05,181.67,181.66,5.5038]
[1747963110667,5.501,181.76,181.65,119.78]
[1747963110866,125.4871,181.78,181.65,119.78]
[1747963111372,5.5011,181.75,181.65,119.78]
[1747963111574,125.4871,181.78,181.65,119.78]
[1747963111768,0.04221639,181.73,181.7,0.03981271]
[1747963112069,5.5028,181.7,181.63,119.72]
[1747963112271,125.4871,181.78,181.63,119.72]
[1747963112572,5.5031,181.69,181.63,119.72]
[1747963112775,119.72,181.72,181.63,119.72]
[1747963112971,0.04093923,181.69,181.66,0.03613344]
[1747963113579,0.04093923,181.69,181.67,5.5035]
[1747963113874,0.04093923,181.69,181.66,0.03613344]
[1747963114073,0.04093923,181.69,181.66,5.53993344]
[1747963114276,0.04093923,181.69,181.66,0.03613344]
[1747963115777,5.54383923,181.69,181.67,5.5034]
[1747963115977,0.04093923,181.69,181.67,5.5034]
[1747963116271,0.04093923,181.69,181.68,5.5032]
[1747963116871,3.923e-05,181.69,181.68,5.5032]
[1747963117079,119.72,181.81,181.68,133.15375415]
[1747963117377,119.72,181.81,181.69,106.5104]
[1747963117967,0.04100578,181.77,181.73,0.04131477]
[1747963118175,0.04100578,181.77,181.76,5.5006]
[1747963119177,0.04100578,181.77,181.73,119.76131477]
[1747963120579,0.04100578,181.77,181.76,5.5008]
[1747963121375,0.04100578,181.77,181.73,119.76131477]
[1747963121681,0.04100578,181.77,181.68,119.5]
[1747963121879,119.5,181.8,181.66,108.76897964]
[1747963122276,119.5,181.8,181.66,104.56]
[1747963122575,5.5021,181.72,181.71,0.03864833]
[1747963123773,3.8779,181.74,181.64,224.06]
[1747963124076,11.81165415,181.74,181.56,123.70897964]
[1747963124282,5.5053,181.62,181.56,123.70897964]
[1747963124580,119.5,181.66,181.56,123.70897964]
[1747963124775,0.03554057,181.63,181.59,0.03894417]
[1747963124970,0.0376297,181.63,181.6,5.5054]
[1747963125167,0.0376297,181.63,181.59,0.04170722]
[1747963126181,5.5056,181.6,181.59,0.04170722]
[1747963126380,0.0376297,181.63,181.59,0.04170722]
[1747963126777,5.5053,181.62,181.59,0.04170722]
[1747963127074,0.0376297,181.63,181.59,0.04170722]
[1747963127583,119.52,181.62,181.52,119.52]
[1747963127782,3.7881,181.61,181.52,119.52]
[1747963128083,3.7881,181.61,181.49,4.20897964]
[1747963128487,5.5067,181.57,181.52,5.508]
[1747963128684,0.03517122,181.56,181.53,0.04058701]
[1747963129886,119.57517122,181.56,181.49,4.20897964]
[1747963130382,119.57517122,181.56,181.45,119.54]
[1747963130581,119.54,181.56,181.45,119.54]
[1747963130777,5.5082,181.52,181.47,5.5096]
[1747963130979,0.03892356,181.51,181.48,0.03489499]
[1747963131979,5.54732356,181.51,181.48,0.03489499]
[1747963132184,0.03892356,181.51,181.48,0.03489499]
[1747963133284,5.54752356,181.51,181.48,0.03489499]
[1747963133886,5.5088,181.5,181.48,0.03489499]
[1747963134184,0.03892356,181.51,181.48,0.03489499]
[1747963134484,5.54752356,181.51,181.48,0.03489499]
[1747963134685,0.03892356,181.51,181.48,0.03489499]
[1747963135385,5.54732356,181.51,181.48,0.03489499]
[1747963135883,0.03892356,181.51,181.48,5.54409499]
[1747963136186,0.03892356,181.51,181.48,0.03489499]
[1747963136486,0.03892356,181.51,181.48,5.54409499]
[1747963137388,0.03892356,181.51,181.5,5.5087]
[1747963137792,2.356e-05,181.51,181.5,5.5087]
[1747963138094,2.356e-05,181.51,181.5,125.1287]
[1747963141093,1.8858,181.61,181.58,5.5061]
[1747963141297,1.8858,181.61,181.5,224.28]
[1747963141490,119.62,181.62,181.51,1.8539]
[1747963141798,125.1251,181.62,181.51,1.8539]
[1747963142101,0.03708216,181.58,181.57,5.5065]
[1747963143588,8.216e-05,181.58,181.57,5.5065]
[1747963143895,2.0259,181.66,181.55,119.65626302]
[1747963144197,2.0259,181.66,181.56,1.9045]
[1747963144801,2.0259,181.66,181.59,0.03641243]
[1747963144802,0.03739675,181.63,181.59,0.03641243]
[1747963145698,0.03739675,181.63,181.61,5.5051]
[1747963146202,0.03739675,181.63,181.59,0.03641243]
[1747963146399,0.03739675,181.63,181.6,5.5055]
[1747963146694,0.03739675,181.63,181.59,0.03641243]
[1747963147197,0.03739675,181.63,181.6,119.6]
[1747963147598,9.675e-05,181.63,181.62,5.505]
[1747963150507,119.6,181.72,181.6,121.4876]
[1747963150895,5.5025,181.71,181.6,121.4876]
[1747963151197,5.5025,181.71,181.67,5.5034]
[1747963151599,5.53968706,181.71,181.67,5.54021613]
[1747963151810,5.5026,181.7,181.67,0.03681613]
[1747963151997,0.03718706,181.71,181.67,0.03681613]
[1747963153410,0.03718706,181.71,181.7,5.5026]
[1747963156111,0.03718706,181.71,181.68,119.38]
[1747963156504,0.03718706,181.71,181.69,5.5029]
[1747963156809,0.03718706,181.71,181.67,0.03681613]
[1747963157509,0.03718706,181.71,181.68,5.5031]
[1747963157712,0.03718706,181.71,181.67,0.03681613]
[1747963158214,0.03718706,181.71,181.68,5.5031]
[1747963158510,0.03718706,181.71,181.67,0.03681613]
[1747963158700,0.03718706,181.71,181.68,5.5032]
[1747963158900,0.03718706,181.71,181.67,0.03681613]
[1747963159410,0.03718706,181.71,181.7,5.5026]
[1747963160001,0.03718706,181.71,181.67,0.03681613]
[1747963160818,0.03718706,181.71,181.7,5.5026]
[1747963161511,0.03718706,181.71,181.67,0.03681613]
[1747963162420,0.03718706,181.71,181.7,5.5026]
[1747963163016,0.03718706,181.71,181.69,5.5028]
[1747963163208,0.03718706,181.71,181.67,0.03681613]
[1747963164616,0.03718706,181.71,181.7,5.5026]
[1747963164809,0.03718706,181.71,181.67,0.03681613]
[1747963165719,0.03718706,181.71,181.7,5.5026]
[1747963169919,0.03718706,181.71,181.68,5.5031]
[1747963170119,0.03718706,181.71,181.67,0.03681613]
[1747963171622,0.03718706,181.71,181.68,5.5029]
[1747963171826,0.03718706,181.71,181.67,0.03681613]
[1747963172120,5.53958706,181.71,181.67,0.03681613]
[1747963172423,5.53958706,181.71,181.68,5.5032]
[1747963173425,119.32,181.7,181.56,4.13074415]
[1747963173631,131.21225415,181.7,181.56,4.13074415]
[1747963174433,5.54643093,181.65,181.61,5.54750248]
[1747963174729,0.04203093,181.65,181.61,0.04240248]
[1747963174927,5.5058,181.6,181.56,9.63744415]
[1747963175118,119.34,181.66,181.56,4.13074415]
[1747963175421,5.5054,181.61,181.57,5.5063]
[1747963175615,119.34,181.66,181.51,119.34]
[1747963175816,0.04040537,181.6,181.57,0.03909872]
[1747963176016,5.5059,181.59,181.57,0.03909872]
[1747963176529,0.04040537,181.6,181.57,0.03909872]
[1747963176731,5.5062,181.58,181.57,0.03909872]
[1747963178121,1.92230537,181.6,181.57,0.03909872]
[1747963178830,5.5059,181.59,181.57,0.03909872]
[1747963179026,1.92230537,181.6,181.57,0.03909872]
[1747963179331,0.04040537,181.6,181.57,0.03909872]
[1747963181225,5.54600537,181.6,181.57,0.03909872]
[1747963181932,5.5062,181.58,181.57,0.03909872]
[1747963182133,3.8953,181.59,181.57,0.03909872]
[1747963183136,5.5062,181.58,181.57,0.03909872]
[1747963185139,3.8953,181.59,181.48,475.48]
[1747963185640,5.5072,181.55,181.51,5.5082]
[1747963185937,3.8953,181.59,181.47,119.2]
[1747963186238,0.0360352,181.55,181.52,5.508]
[1747963186741,5.508,181.52,181.51,0.0382197]
[1747963186937,0.0360352,181.55,181.45,4.13074415]
[1747963187239,119.22,181.56,181.45,4.13074415]
[1747963187643,5.508,181.52,181.48,5.509]
[1747963187836,0.03902396,181.52,181.48,5.54873013]
[1747963188141,0.03902396,181.52,181.49,5.5087]
[1747963188331,0.03902396,181.52,181.48,0.03973013]
[1747963188741,0.03902396,181.52,181.49,5.5089]
[1747963189133,5.54722396,181.52,181.49,5.5089]
[1747963189437,0.03902396,181.52,181.48,5.54893013]
[1747963189944,0.03902396,181.52,181.48,0.03973013]
[1747963190240,0.03902396,181.52,181.49,5.509]
[1747963190544,0.03902396,181.52,181.48,0.03973013]
[1747963191145,5.54712396,181.52,181.49,5.5089]
[1747963191444,5.54712396,181.52,181.48,0.03973013]
[1747963191742,0.03902396,181.52,181.48,0.03973013]
[1747963191933,119.26,181.51,181.48,0.03973013]
[1747963192138,123.26,181.51,181.48,0.03973013]
[1747963192337,5.5095,181.48,181.44,5.5102]
[1747963192744,5.5095,181.48,181.39,594.98]
[1747963193244,0.03597604,181.45,181.42,0.03767249]
[1747963194642,0.03597604,181.45,181.44,5.5103]
[1747963196845,0.03597604,181.45,181.43,5.5107]
[1747963197848,0.03597604,181.45,181.42,5.54867249]
[1747963198048,0.03597604,181.45,181.42,0.03767249]
[1747963198749,0.03597604,181.45,181.43,5.5105]
[1747963199144,0.03597604,181.45,181.42,0.03767249]
[1747963199450,0.03597604,181.45,181.44,5.5104]
[1747963200451,119.3,181.55,181.5,5.5084]
[1747963200650,119.3,181.55,181.42,4.97198225]
[1747963200853,119.3,181.55,181.41,1.8588]
[1747963201150,119.3,181.55,181.42,119.3]
[1747963201352,5.5089,181.5,181.42,119.3]
[1747963201555,119.3,181.55,181.44,0.0380713]
[1747963201748,0.04113266,181.51,181.48,0.03757375]
[1747963201948,0.04113266,181.51,181.48,5.54687375]
[1747963202253,0.04113266,181.51,181.48,0.03757375]
[1747963202558,119.3,181.59,181.48,124.309556]
[1747963202744,119.3,181.64,181.54,4.97198225]
[1747963202951,119.3,181.66,181.61,5.5051]
[1747963203153,119.3,181.66,181.55,119.3]
[1747963203551,0.03914116,181.62,181.6,5.5053]
[1747963203744,119.3,181.67,181.6,5.5053]
[1747963203952,0.03545052,181.63,181.6,5.5053]
[1747963204261,0.03545052,181.63,181.59,0.03583534]
[1747963204855,0.03545052,181.63,181.62,5.505]
[1747963205149,0.03545052,181.63,181.6,5.5056]
[1747963205553,0.03545052,181.63,181.59,0.03583534]
[1747963207459,0.03545052,181.63,181.62,5.505]
[1747963208657,0.03545052,181.63,181.59,0.03583534]
[1747963210649,0.03545052,181.63,181.6,5.5054]
[1747963211555,0.03545052,181.63,181.59,5.54173534]
[1747963211759,0.03545052,181.63,181.59,0.03583534]
[1747963213660,0.03545052,181.63,181.61,5.5051]
[1747963213858,0.03545052,181.63,181.59,0.03583534]
[1747963214359,0.03545052,181.63,181.61,5.5052]
[1747963215457,0.03545052,181.63,181.6,5.5056]
[1747963215760,0.03545052,181.63,181.59,0.03583534]
[1747963216461,0.03545052,181.63,181.62,5.505]
[1747963217662,0.03545052,181.63,181.61,5.5053]
[1747963217865,0.03545052,181.63,181.59,0.03583534]
[1747963219162,0.03545052,181.63,181.62,5.505]
[1747963225757,0.03545052,181.63,181.59,0.03583534]
[1747963226470,4.9604028,181.59,181.45,119.0]
[1747963226670,4.9604028,181.56,181.42,104.6]
[1747963226867,4.9604028,181.56,181.45,5.55742324]
[1747963227369,0.04225102,181.52,181.49,0.03668773]
[1747963227565,119.0,181.51,181.49,0.03668773]
[1747963227767,124.5086,181.51,181.49,0.03668773]
[1747963228361,119.0,181.51,181.49,0.03668773]
[1747963229475,5.5087,181.5,181.49,0.03668773]
[1747963229971,119.0,181.51,181.41,119.0]
[1747963230174,5.5093,181.48,181.41,119.0]
[1747963230674,5.5093,181.48,181.44,5.5102]
[1747963230877,5.54512879,181.48,181.44,5.54701616]
[1747963231165,5.54512879,181.48,181.36,1.9259]
[1747963231166,0.03582879,181.48,181.3,223.7]
[1747963231372,475.9,181.49,181.37,5.5124]
[1747963231569,477.8813,181.49,181.37,5.5124]
[1747963231776,2.0408,181.48,181.37,5.5124]
[1747963231971,2.0408,181.48,181.38,5.5122]
[1747963232173,0.03848209,181.44,181.41,0.03979918]
[1747963232368,119.06,181.43,181.41,0.03979918]
[1747963232673,119.06,181.43,181.42,5.5111]
[1747963233272,0.03848209,181.44,181.43,5.5108]
[1747963234669,0.03848209,181.44,181.42,5.511]
[1747963235275,0.03848209,181.44,181.43,5.5108]
[1747963236771,119.08,181.51,181.48,5.5092]
[1747963236969,119.08,181.51,181.4,120.9952]
[1747963237673,124.5886,181.51,181.46,5.5098]
[1747963237977,0.04194032,181.47,181.46,5.5098]
[1747963242578,4.032e-05,181.47,181.46,5.5098]
[1747963243974,4.032e-05,181.47,181.46,110.2098]
[1747963247580,1.852,181.61,181.46,110.22]
[1747963247783,118.9,181.64,181.47,63.9809]
[1747963247979,120.9033,181.66,181.48,1.8589]
[1747963248380,120.9033,181.66,181.49,223.58]
[1747963248579,5.5051,181.62,181.49,223.58]
[1747963248880,0.04096822,181.59,181.56,0.04201078]
[1747963249085,0.03833455,181.59,181.56,0.04201078]
[1747963249985,0.03833455,181.59,181.58,5.5062]
[1747963252592,0.03833455,181.59,181.56,0.04201078]
[1747963254591,0.03833455,181.59,181.42,223.52]
[1747963254592,5.53833455,181.59,181.42,223.52]
[1747963254787,3.9216,181.6,181.42,223.52]
[1747963254788,9.9492632,181.58,181.42,118.86]
[1747963254986,9.9492632,181.58,181.42,223.52]
[1747963255389,5.5075,181.54,181.42,223.52]
[1747963255587,0.03691701,181.5,181.46,0.03907448]
[1747963255896,5.54581701,181.5,181.46,5.54887448]
[1747963256089,0.03691701,181.5,181.46,0.03907448]
[1747963256500,5.5093,181.49,181.46,0.03907448]
[1747963256890,124.3693,181.49,181.46,0.03907448]
[1747963257391,5.5093,181.48,181.46,0.03907448]
[1747963257592,118.86,181.49,181.46,0.03907448]
[1747963259599,118.86,181.49,181.47,5.5094]
[1747963260101,118.86,181.49,181.48,5.5093]
[1747963260399,118.86,181.49,181.46,0.03907448]
[1747963261195,118.86,181.49,181.46,5.54887448]
[1747963261603,118.86,181.49,181.46,0.03907448]
[1747963262302,5.5093,181.48,181.46,0.03907448]
[1747963262702,118.86,181.49,181.46,0.03907448]
[1747963263201,5.5093,181.48,181.46,0.03907448]
[1747963263805,5.5096,181.47,181.46,0.03907448]
[1747963264398,5.5106,181.44,181.41,5.5114]
[1747963264602,1.9209,181.48,181.38,118.9]
[1747963264809,1.9209,181.48,181.35,477.7807]
[1747963265102,5.5107,181.44,181.4,5.5114]
[1747963265308,1.9209,181.48,181.35,1.8807]
[1747963265507,0.03947031,181.43,181.4,0.03856691]
[1747963266404,118.9,181.42,181.4,0.03856691]
[1747963267001,5.5114,181.41,181.4,0.03856691]
[1747963269008,124.4113,181.42,181.4,0.03856691]
[1747963269810,5.5114,181.41,181.4,0.03856691]
[1747963271410,118.9,181.42,181.4,0.03856691]
[1747963273515,124.4114,181.42,181.4,0.03856691]
[1747963273809,118.9,181.42,181.4,0.03856691]
[1747963274809,5.5114,181.41,181.4,0.03856691]
[1747963276214,124.4111,181.42,181.4,0.03856691]
[1747963276714,118.9,181.42,181.4,0.03856691]
[1747963276915,0.03947031,181.43,181.4,0.03856691]
[1747963277516,0.03947031,181.43,181.42,5.5111]
[1747963278117,594.78,181.49,181.46,5.5098]
[1747963278512,118.74,181.49,181.41,120.7232]
[1747963278815,118.74,181.53,181.41,120.7232]
[1747963279217,118.74,181.53,181.45,0.03909751]
[1747963279415,0.0351134,181.51,181.45,0.03909751]
[1747963279615,0.0351134,181.51,181.5,5.5087]
[1747963280020,0.0351134,181.51,181.49,0.03693827]
[1747963280813,5.5107,181.44,181.39,5.512]
[1747963281117,5.5107,181.44,181.31,5.56132443]
[1747963281118,118.74,181.47,181.32,1.8867]
[1747963281305,5.5125,181.38,181.33,5.5136]
[1747963281505,118.74,181.41,181.32,1.8867]
[1747963281810,0.04211111,181.38,181.35,0.0391998]
[1747963282815,5.55451111,181.38,181.35,0.0391998]
[1747963283214,0.04211111,181.38,181.35,5.5523998]
[1747963283415,0.04211111,181.38,181.35,0.0391998]
[1747963285124,0.04211111,181.38,181.36,5.5129]
[1747963285618,0.04211111,181.38,181.35,0.0391998]
[1747963285820,0.04211111,181.38,181.37,5.5126]
[1747963286117,0.04211111,181.38,181.35,0.0391998]
[1747963286317,5.5129,181.36,181.35,0.0391998]
[1747963286926,5.5127,181.37,181.35,0.0391998]
[1747963287523,0.04211111,181.38,181.35,0.0391998]
[1747963288110,0.04211111,181.38,181.36,5.5127]
[1747963288930,0.04211111,181.38,181.35,0.0391998]
[1747963289725,0.04211111,181.38,181.37,5.5126]
[1747963291422,0.04211111,181.38,181.36,5.5128]
[1747963291629,0.04211111,181.38,181.35,0.0391998]
[1747963292019,0.04211111,181.38,181.36,5.5126]
[1747963292523,0.04211111,181.38,181.35,0.0391998]
[1747963293324,5.55451111,181.38,181.35,0.0391998]
[1747963293526,0.04211111,181.38,181.35,0.0391998]
[1747963293721,0.04211111,181.38,181.37,5.5126]
[1747963298535,5.5101,181.46,181.35,118.7991998]
[1747963298725,476.28,181.47,181.35,118.76]
[1747963299031,5.5108,181.43,181.35,118.76]
[1747963299427,476.28,181.47,181.4,5.5116]
[1747963299624,5.5106,181.44,181.42,0.03704789]
[1747963299933,0.03915438,181.45,181.42,0.03704789]
[1747963300430,6.81372358,181.53,181.42,0.03704789]
[1747963300626,128.98058537,181.56,181.41,118.76]
[1747963300627,6.81372358,181.54,181.41,118.76]
[1747963300833,6.81372358,181.54,181.44,7.95602578]
[1747963301533,0.03594896,181.51,181.47,0.03737086]
[1747963301738,0.03594896,181.51,181.48,223.5]
[1747963301941,0.03594896,181.51,181.48,225.456]
[1747963302540,6.81372358,181.54,181.48,225.456]
[1747963302733,6.81372358,181.54,181.49,1.8553]
[1747963303035,6.81372358,181.54,181.52,5.5078]
[1747963303241,118.76,181.6,181.52,5.5078]
[1747963303537,0.03998298,181.58,181.54,0.03723083]
[1747963304430,0.03998298,181.58,181.56,5.5066]
[1747963304831,0.03998298,181.58,181.56,104.72]
[1747963305840,0.03998298,181.58,181.56,110.2266]
[1747963306341,0.03998298,181.58,181.56,104.72]
[1747963306544,0.03998298,181.58,181.54,0.03723083]
[1747963307032,5.5071,181.55,181.54,0.03723083]
[1747963308441,5.5068,181.56,181.54,0.03723083]
[1747963309041,0.03998298,181.58,181.54,0.03723083]
[1747963309543,5.5071,181.56,181.54,0.03723083]
[1747963309745,0.03998298,181.58,181.54,0.03723083]
[1747963310143,5.507,181.56,181.54,0.03723083]
[1747963310346,0.03998298,181.58,181.54,0.03723083]
[1747963310646,5.5068,181.57,181.54,0.03723083]
[1747963311040,0.03998298,181.58,181.54,0.03723083]
[1747963311741,5.5068,181.57,181.54,0.03723083]
[1747963312834,5.5069,181.56,181.54,0.03723083]
[1747963313039,0.03998298,181.58,181.54,0.03723083]
[1747963313548,5.5071,181.55,181.54,0.03723083]
[1747963314546,5.5083,181.51,181.5,118.54]
[1747963314733,2.0018,181.59,181.47,104.68]
[1747963314734,118.52,181.55,181.47,104.68]
[1747963314935,118.52,181.55,181.48,5.5092]
[1747963315147,5.5078,181.53,181.47,104.68]
[1747963315350,2.0018,181.59,181.53,5.5077]
[1747963315648,0.0414005,181.58,181.54,0.04159849]
[1747963315848,5.5477005,181.58,181.54,0.04159849]
[1747963316248,0.0414005,181.58,181.54,0.04159849]
[1747963316437,5.5069,181.56,181.54,0.04159849]
[1747963316642,0.0414005,181.58,181.54,0.04159849]
[1747963317554,0.0414005,181.58,181.55,5.5071]
[1747963318745,0.0414005,181.58,181.56,5.5068]
[1747963318946,0.0414005,181.58,181.54,0.04159849]
[1747963319851,0.0414005,181.58,181.57,5.5065]
[1747963320046,5.5046,181.64,181.55,223.16]
[1747963320247,118.5,181.67,181.6,5.5054]
[1747963320447,118.5,181.67,181.56,2.0432]
[1747963320855,5.5053,181.62,181.57,5.5062]
[1747963321055,0.03983682,181.61,181.58,0.03552257]
[1747963321945,0.03983682,181.61,181.6,5.5056]
[1747963322953,0.03983682,181.61,181.58,0.03552257]
[1747963323750,0.03983682,181.61,181.6,5.5056]
[1747963324056,0.03983682,181.61,181.59,223.16]
[1747963324257,0.03983682,181.61,181.6,5.5056]
[1747963325158,0.03983682,181.61,181.58,0.03552257]
[1747963325456,5.54513682,181.61,181.58,0.03552257]
[1747963325656,0.03983682,181.61,181.58,0.03552257]
[1747963325861,0.03983682,181.61,181.58,5.54162257]
[1747963326154,0.03983682,181.61,181.58,0.03552257]
[1747963328161,0.03983682,181.61,181.6,5.5056]
[1747963330064,3.682e-05,181.61,181.6,5.5056]
[1747963330355,3.682e-05,181.61,181.58,0.03552257]
[1747963331256,3.682e-05,181.61,181.58,223.13552257]
[1747963331451,3.682e-05,181.61,181.6,5.5056]
[1747963332259,3.682e-05,181.61,181.58,223.13552257]
[1747963332565,3.682e-05,181.61,181.58,0.03552257]
[1747963333369,3.682e-05,181.61,181.6,5.5056]
[1747963336169,3.682e-05,181.61,181.59,118.46]
[1747963336564,3.682e-05,181.61,181.6,5.5056]
[1747963337865,3.682e-05,181.61,181.59,123.9658]
[1747963338064,3.682e-05,181.61,181.58,0.03552257]
[1747963338374,5.5067,181.57,181.54,5.5072]
[1747963338967,5.5063,181.58,181.55,5.5071]
[1747963339169,0.04113633,181.58,181.55,0.04139984]
[1747963339671,3.633e-05,181.58,181.57,5.5065]
[1747963340268,120.3272,181.69,181.64,5.5044]
[1747963340977,120.3272,181.69,181.59,104.62]
[1747963341270,5.5042,181.65,181.62,0.03948133]
[1747963341463,0.04102834,181.66,181.62,0.03948133]
[1747963343378,5.5047,181.63,181.62,0.03948133]
[1747963344476,0.04102834,181.66,181.62,0.03948133]
[1747963345073,5.54502834,181.66,181.63,5.5045]
[1747963346273,0.04102834,181.66,181.62,0.03948133]
[1747963346980,0.04102834,181.66,181.56,118.3]
[1747963347276,0.04102834,181.66,181.53,4.1840198]
[1747963347474,7.93870342,181.66,181.53,4.1840198]
[1747963347776,1.9851,181.65,181.53,4.1840198]
[1747963347976,0.03965071,181.61,181.57,0.04182315]
[1747963348382,0.03965071,181.61,181.58,5.5061]
[1747963348675,0.03965071,181.61,181.57,0.04182315]
[1747963350579,5.54505071,181.61,181.57,5.54812315]
[1747963350783,5.54505071,181.61,181.57,0.04182315]
[1747963351085,5.5057,181.6,181.57,5.54822315]
[1747963351379,5.5057,181.6,181.57,0.04182315]
[1747963351682,0.03965071,181.61,181.57,0.04182315]
[1747963352982,0.03965071,181.61,181.58,5.506]
[1747963353282,0.03965071,181.61,181.57,0.04182315]
[1747963355185,5.5058,181.6,181.57,0.04182315]
[1747963355382,0.03965071,181.61,181.57,0.04182315]
[1747963355786,5.5056,181.6,181.57,0.04182315]
[1747963356085,0.03965071,181.61,181.57,0.04182315]
[1747963356285,0.03965071,181.61,181.57,118.34182315]
[1747963357087,0.03965071,181.61,181.58,5.506]